Cogmind - Beta 13 @@@ ROGUE MODE // 2024.04.28 @ 19:44:21 Player: Johnny2001 Result: Destroyed by S-10 Pest with Light Assault Rifle Performance ------------- Evolutions (1) 500 Regions Visited (2) 400 Robots Destroyed (8) 40 Value Destroyed (181) 181 Prototype IDs (0) 0 Alien Tech Used (0) 0 Bonus (0) 0 TOTAL SCORE: 1121 Bonus ------- None Cogmind --------- Core Integrity 0/400 Matter 300/300 Energy 100/100 System Corruption 1% Temperature Cool (0) Movement Core (200) Ox3 Location -9/Materials Parts ------- > --- POWER (1) -------- (None) > --- PROPULSION (2) --- (None) > --- UTILITY (4) ------ Small Storage Unit Melee Analysis Suite Melee Analysis Suite Melee Analysis Suite > --- WEAPON (2) ------- Heavy Flail Mining Claw > --- INVENTORY (8) ---- Light Ion Engine Light Treads Aluminum Leg Wheel Compact Wheel EM Shotgun Small Laser Assault Rifle Peak State ------------ > --- POWER ------------ Ion Engine > --- PROPULSION ------- Aluminum Leg Improved Aluminum Leg > --- UTILITY ---------- Small Storage Unit Melee Analysis Suite Melee Analysis Suite Melee Analysis Suite > --- WEAPON ----------- Heavy Flail Mining Claw > --- INVENTORY -------- Light Ion Engine Light Treads Aluminum Leg Wheel Compact Wheel EM Shotgun Small Laser Assault Rifle [Rating: 18] Favorites ----------- Power Ion Engine Engine Ion Engine Propulsion Aluminum Leg Leg Aluminum Leg Utility Melee Analysis Suite Storage Small Storage Unit Processor Melee Analysis Suite Weapon Mining Claw Ballistic Gun Assault Rifle Impact Weapon Heavy Flail Slashing Weapon Mining Claw Build | -11 -10 -9 ------- Run | Yrd Mat Mat Slots Evolved 2 | . . 2 Power . | . . . Propulsion . | . . . Utility 2 | . . 2 Weapon . | . . . Parts Attached 12 | 6 1 5 Power 1 | 1 . . Engine 1 | 1 . . Core . | . . . Reactor . | . . . Propulsion 3 | 2 . 1 Treads . | . . . Leg 3 | 2 . 1 Wheel . | . . . Hover . | . . . Flight . | . . . Utility 4 | 1 . 3 Device . | . . . Storage 1 | 1 . . Processor 3 | . . 3 Hackware . | . . . Protection . | . . . Artifact . | . . . Weapon 4 | 2 1 1 Energy Gun . | . . . Energy Cannon . | . . . Ballistic Gun 2 | 2 . . Ballistic Cannon . | . . . Launcher . | . . . Special Weapon . | . . . Impact Weapon 1 | . . 1 Slashing Weapon 1 | . 1 . Piercing Weapon . | . . . Special Melee Weapon . | . . . Unidentified Prototypes . | . . . Parts Lost 4 | . . 4 Power 1 | . . 1 Propulsion 2 | . . 2 Utility . | . . . Weapon 1 | . . 1 Highest Loss Streak 1 | . . 1 To Critical Strikes . | . . . Average Slot Usage (%) 80 | . 85 78 Engine 6 | . 14 4 Leg 21 | . 28 18 Storage 11 | . 14 11 Processor 17 | . . 24 Ballistic Gun 7 | . 20 2 Impact Weapon 5 | . . 8 Slashing Weapon 10 | . 7 11 Naked Turns . | . . . Heaviest Build 15 | 14 14 15 Greatest Support 23 | 20 20 23 Greatest Overweight (x) 3 | 1 . 3 Average Overweight (x) . | . . . Largest Inventory Capacity 8 | 8 8 8 Average Capacity 7 | 6 8 8 Most Carried 8 | 6 7 8 Average Carried 7 | 4 6 7 Final Capacity 8 | 8 8 8 Final Carried 8 | 6 7 8 Class Distribution -------------------- 51% | Mutant 48% | Gladiator Dominant Class ---------------- Mutant | -10/Materials Gladiator | -9/Materials Resources | -11 -10 -9 ----------- Run | Yrd Mat Mat Matter Collected 313 | 225 19 69 Remotely . | . . . Salvage Created 214 | . 19 195 Parts 8 | . 1 7 Haulers Intercepted . | . . . Recyclers Shooed . | . . . Parts Field Recycled . | . . . Retrieved Matter . | . . . Parts Self-Destructed . | . . . Prevented . | . . . Kills | -11 -10 -9 ------- Run | Yrd Mat Mat Combat Hostiles Destroyed 5 | . . 5 Melee 2 | . . 2 Classes Destroyed 6 | . 1 5 Builder 1 | . . 1 Operator 1 | . 1 . Watcher 1 | . . 1 Swarmer 2 | . . 2 Grunt 1 | . . 1 Sentry 2 | . . 2 Best Kill Streak 5 | . 1 5 Combat Bots Only 3 | . . 3 Max Kills in Single Turn 1 | . 1 1 Gunslinging . | . . . Exploded . | . . . Melee 1 | . . 1 Uniques/NPCs Destroyed . | . . . Combat | -11 -10 -9 -------- Run | Yrd Mat Mat Hostile Shots Fired 129 | . 17 112 Missed 39 | . 8 31 Damage Taken 987 | . 109 878 Core 438 | . 36 402 Absorbed by Shields . | . . . Core Remaining (%) 92 | 100 85 . Volleys Fired 1 | . 1 . Largest 1 | . 1 . Hottest 20 | . 20 . Shots Fired 1 | . 1 . Gun 1 | . 1 . Cannon . | . . . Launcher . | . . . Special . | . . . Kinetic 1 | . 1 . Thermal . | . . . Explosive . | . . . Electromagnetic . | . . . Robot Hit Streak . | . . . Robot Miss Streak . | . . . Penetration Max . | . . . Secondary Targets . | . . . Shots Hit Robots 14 | . 1 13 Core Hits 3 | . 1 2 Critical Kills 1 | . . 1 Critical Parts Destroyed . | . . . Critical Strikes 1 | . . 1 Smash 1 | . . 1 Melee Attacks 34 | . 4 30 Impact 23 | . . 23 Slashing 11 | . 4 7 Piercing . | . . . Sneak Attacks 2 | . 1 1 Combat Hostiles . | . . . Follow-up Attacks 2 | . . 2 Damage Inflicted 771 | . 65 706 Guns . | . . . Cannons . | . . . Explosions . | . . . Melee 771 | . 65 706 Ramming . | . . . Kinetic . | . . . Thermal . | . . . Explosive . | . . . Electromagnetic . | . . . Impact 656 | . . 656 Slashing 115 | . 65 50 Piercing . | . . . Highest Corruption 1 | . . 1 Average Corruption 1 | . . 1 Corruption Purged . | . . . Corruption Blocked . | . . . Overload Shots . | . . . Overflow Damage 251 | . . 251 Projectiles . | . . . Explosions . | . . . Melee 251 | . . 251 Knockbacks 5 | . . 5 Impact 5 | . . 5 Kinetic . | . . . Secondary . | . . . Self-Inflicted Damage . | . . . Shots . | . . . Rammed . | . . . Targets Rammed . | . . . Kicked . | . . . Crushed . | . . . Highest Temperature 7 | . . 7 Average Temperature 7 | . . 7 Received Heat Transfer 279 | . 60 219 Siege Activations . | . . . Robots Corrupted . | . . . Combat Hostiles . | . . . Parts Fried 5 | . . 5 Impact Corruptions 11 | . . 11 Robots Melted . | . . . Combat Hostiles . | . . . Parts Melted . | . . . Heat Transferred . | . . . Parts Sabotaged . | . . . Parts Stolen . | . . . Parts Stripped . | . . . Power Chain Reactions . | . . . Alert | -11 -10 -9 ------- Run | Yrd Mat Mat Peak Influence 299 | . 23 299 Initial 9 | . . 9 Average 78 | . 18 119 Maximum Alert Level 1 | . . 1 Low Security (%) 82 | 100 100 71 Level 1 17 | . . 28 Level 2 . | . . . Level 3 . | . . . Level 4 . | . . . Level 5 . | . . . High Security . | . . . Max Security . | . . . Squads Dispatched 3 | . 1 2 Investigation . | . . . Extermination . | . . . Reinforcement 3 | . 1 2 Assault . | . . . Garrison . | . . . Intercept . | . . . Searches Triggered . | . . . Construction Impeded . | . . . Haulers Reinforced . | . . . Active Scanning Responses . | . . . Cargo Convoy Interrupts . | . . . Stealth | -11 -10 -9 --------- Run | Yrd Mat Mat Distress Signals 2 | . . 2 Communications Jammed . | . . . Distress Signals . | . . . Times Spotted 27 | . 3 24 Peak Tracking Total 6 | . 3 6 Tactical Retreats 4 | . . 4 Traps | -11 -10 -9 ------- Run | Yrd Mat Mat Traps Triggered 1 | . . 1 Indirectly . | . . . Trap Hack Attempts . | . . . Triggered . | . . . Disarmed . | . . . Reprogrammed . | . . . Reused . | . . . Traps Extracted . | . . . Installed . | . . . Triggered . | . . . Machines | -11 -10 -9 ---------- Run | Yrd Mat Mat Machines Disabled . | . . . Max in Single Turn . | . . . Machines Repaired . | . . . Machines Dismantled . | . . . Machines Sabotaged . | . . . Overloaded Fab Kills . | . . . Hacking | -11 -10 -9 --------- Run | Yrd Mat Mat Machines Accessed 1 | . . 1 Terminals 1 | . . 1 Fabricators . | . . . Repair Stations . | . . . Recycling Units . | . . . Scanalyzers . | . . . Garrison Access . | . . . Total Hacks 5 | . . 5 Successful 1 | . . 1 Failed 4 | . . 4 Catastrophic 1 | . . 1 Database Lockouts . | . . . Manual 5 | . . 5 Terminals 5 | . . 5 Fabricators . | . . . Repair Stations . | . . . Recycling Units . | . . . Scanalyzers . | . . . Garrison Access . | . . . Terminal Hacks . | . . . Fabricator Hacks . | . . . Repair Station Hacks . | . . . Recycling Unit Hacks . | . . . Scanalyzer . | . . . Garrison Access Hacks . | . . . Unauthorized Hacks 1 | . . 1 Terminals 1 | . . 1 Botnet 1 | . . 1 Fabricators . | . . . Repair Stations . | . . . Recycling Units . | . . . Scanalyzers . | . . . Garrison Access . | . . . Data Cores Recovered . | . . . Used . | . . . Hacking Detections 1 | . . 1 Full Trace Events . | . . . Feedback Events . | . . . Feedback Blocked . | . . . Robot Schematics Acquired . | . . . Robots Built . | . . . Authchips . | . . . Time . | . . . Total Robot Build Rating . | . . . Part Schematics Acquired . | . . . Parts Built . | . . . Authchips . | . . . Time . | . . . Total Part Build Rating . | . . . Parts Repaired . | . . . Time . | . . . Parts Recycled . | . . . Recycled Matter . | . . . Retrieved Matter . | . . . Retrieved Components . | . . . Parts Scanalyzed . | . . . Part Schematics Acquired . | . . . Parts Damaged . | . . . Bothacking | -11 -10 -9 ------------ Run | Yrd Mat Mat Used RIF Installer . | . . . Robots Hacked . | . . . Non-combat . | . . . Combat . | . . . Robot Hacks Applied . | . . . Relay Couplers Released . | . . . Fabnet Peak Effective % . | . . . Robots Rewired . | . . . Allies Hacked . | . . . Hacks Repelled . | . . . Allies | -11 -10 -9 -------- Run | Yrd Mat Mat Total Allies . | . . . Largest Group . | . . . Highest-Rated Group . | . . . Highest-Rated Ally . | . . . Total Orders . | . . . Ally Attacks . | . . . Total Damage . | . . . Kills . | . . . Allies Corrupted . | . . . Allies Melted . | . . . Intel | -11 -10 -9 ------- Run | Yrd Mat Mat Robot Analysis Total . | . . . Derelict Logs Recovered . | . . . Drone Launches . | . . . Drone Recoveries . | . . . Exploration | -11 -10 -9 ------------- Run | Yrd Mat Mat Turns Passed 444 | 66 105 273 Spaces Moved 278 | 47 74 157 Core 21 | 9 . 12 Treads . | . . . Legs 257 | 38 74 145 Wheels . | . . . Hover . | . . . Flight . | . . . Fastest Speed 50 | 50 120 120 Average Speed 121 | 109 120 126 Slowest Speed 200 | 120 120 200 Overloaded Moves . | . . . Propulsion Burnouts . | . . . Robots Hopped . | . . . Cave-ins Triggered . | . . . Exploration Rate (%) 17 | 5 21 26 Regions Visited 2 Branch Regions . Pre-discovered Areas . | . . . Known Exits Taken . | . . . Unknown Exits Taken 2 | 1 1 . Scrap Searched . | . . . Spaces Dug 13 | . 3 10 Terrain Destroyed 13 | . 3 10 Melee 13 | . 3 10 Projectile . | . . . AOE . | . . . Terrain Rammed . | . . . Walls Destroyed . | . . . Machines Disabled . | . . . Actions | -11 -10 -9 --------- Run | Yrd Mat Mat Total 328 | 58 80 190 Wait . | . . . Move 276 | 46 73 157 Hop . | . . . Pick Up 9 | 6 1 2 Fast Attach 10 | 6 . 4 Attach . | . . . Detach . | . . . Swap 2 | . 1 1 Drop 1 | . . 1 Fire 1 | . 1 . Melee 29 | . 4 25 Ram . | . . . Kick . | . . . Crush . | . . . Escape Stasis . | . . . Rewire . | . . . Trap . | . . . Miscellaneous . | . . . Route ------- -11/Scrapyard -10/Materials -9/Materials History --------- Turn | Location | Event 7 | -11/Scrapyard | Discovered new exit (range 15) 67 | -11/Scrapyard | Entered Materials 152 | -10/Materials | Discovered new exit (range 16) 172 | -10/Materials | Entered another Materials area 172 | -9/Materials | Evolved 2 slots: Utility x2 361 | -9/Materials | Core integrity fell below 50% 436 | -9/Materials | Core integrity fell below 20% 445 | -9/Materials | Destroyed by S-10 Pest with Light Assault Rifle Last Messages --------------- S-10 Pest misfires. Mining Claw follow-up attack on S-10 Pest. S-10 Pest misfires. Triggered Shock Trap. The floor emits a surge of raw power. System corrupted (+1). Imp. Aluminum Leg destroyed. S-10 Pest suffers critical hit (Smash). S-10 Pest destroyed. U-05 Engineer builds a Wall. U-05 Engineer lays Concrete. T-07 Excavator is excavating. U-05 Engineer lays Concrete. T-07 Excavator is excavating. U-05 Engineer lays Concrete. O-16 Technician: "IFF HANDSHAKE FAILED. SECURING TERMINAL." Aluminum Leg destroyed. ALERT: Hostiles spotted, dispatching reinforcements to Terminal M006. Map ----- +----------------------------------------------------+ | | | | | | | | | ??????????????????????????????????????????? | | ???????????????????????????? ?????????????? | | ??????????????????????????? ""????????????? | | ?????????????????????????? R????????????? | | ????????????????????????"" "?????######### | | ????????????????????????"" ??????# T | | ???????????????????????? ??????# | | ????????????????######?? ] ???????# | | ?????????????#### #?? ????????# = | | ?????????????? ###+#????????# | | ??????????????? ## #???###??# """"" | | ????????????????# Y #??? ??# """"" | | ?????????????????# #??""" / # """"" | | ?????????????????# #? """ ?# | | ?????????????????# # """ ######### | | ?????????????????# sa # #???????# | | ?????????????????# s " "" #???????# | | ?????????????????# Y### # """????????# | | ?????????????????#s #?# #?= S"#???????# | | ?????????????????# #?# #??? #???????# | | ?????????????????# #?# #??########??????# | | ?????????????????#@ ### ##? #??????? | | ?????????????????# ## # #??????? | | ?????????????????# ## # #??????? | | ?????????????????# ## + "" #??????? | | ????????????????? ## # "" #??????? | | ????????????????? ### ## "T #??????? | | ?????????????????#+##?# #??"" #??????? | | ??????????????????????# #??"" ??????? | | ??????????????????????# #??? ######## | | ??????????????????????# #???######?# # | | ??????????????????????# #??????????# # | | ??????????????????????# #??????????# # | | ??????????????????????# ######?????#[ =# | | ?????????????#######??# ####### # | | ?????????????# ?# + [!= # | | ?????????????# ?# ############! [%=# | | ?????????????# # #??????# ######+## | | ?????????????# # #??????## ## %=% | | ?????????????# + ############ %*%[ | | ?????????????# # + %= # % | | ?????????????# ! ## ##### # ### | | ?????????????# ?# #??# ]# ??? | | ?????????????# ?## #??#^ # ??? | | ?????????????#######????##???# / ??? | | ?????????????????????????????# # #?? | +----------------------------------------------------+ Best States ------------- Heat Dissipation 28 Energy Generation 10 Energy Capacity 250 Matter Stores 300 Matter Capacity 300 Sight Range 16 Terrain Scan Density 10 Evasion (%) 55 Melee Accuracy 15 Item Schematics ----------------- None Robot Schematics ------------------ None Fabricated ------------ Nothing Alien Tech Used ----------------- None Achievements -------------- None Challenges ------------ None Game ------ Seed ScrapLatentDoomcannon Manual? 0 Play Time 00:11:11 Cumulative 21.8 hours Start 2024.04.28 @ 19:37:15 End 2024.04.28 @ 19:44:21 Sessions 1 Manual Loads 0 Difficulty Rogue Special Mode None Game No. 25 Rogue 25 Adventurer 0 Explorer 0 Win Type - Total 0 Types 0/0/0/0/0/0/0/0/0 Lore% 22 Gallery% 29 Achievement% 26 Wizard Run 0 Options --------- Layout 1 ASCII 0 Keyboard 0 Movement Mouse Keybinds 0 Fullscreen 2 Font 24/Smallcaps Map View 50x35 Zoom Use 0% Tactical HUD 0 Map Filters NONE Filters NONE Steam 0 RUN: aadc291b-378d-4ae2-964d-ea13e54a5c74